Cogmind - Beta 13 @@@ ROGUE MODE // 2024.04.28 @ 22:14:28 Player: peko Result: Destroyed by G-34 Mercenary with Small Laser Performance ------------- Evolutions (0) 0 Regions Visited (1) 200 Robots Destroyed (16) 80 Value Destroyed (431) 431 Prototype IDs (0) 0 Alien Tech Used (0) 0 Bonus (0) 0 TOTAL SCORE: 711 Bonus ------- None Cogmind --------- Core Integrity 0/250 Matter 184/300 Energy 250/250 System Corruption 0% Temperature Cool (6) Movement Walking (190) Ox1 Location -10/Materials Parts ------- > --- POWER (1) -------- Ion Engine > --- PROPULSION (2) --- Aluminum Leg > --- UTILITY (2) ------ Small Storage Unit Sensor Array > --- WEAPON (2) ------- Heavy Assault Rifle > --- INVENTORY (8) ---- Ion Engine Beam Cannon Heavy Assault Rifle Heavy Assault Rifle Heavy Assault Rifle Datajack Peak State ------------ > --- POWER ------------ Ion Engine > --- PROPULSION ------- Aluminum Leg Aluminum Leg > --- UTILITY ---------- Small Storage Unit Sensor Array > --- WEAPON ----------- Particle Gun Heavy Assault Rifle > --- INVENTORY -------- Ion Engine Medium Laser Beam Cannon Assault Rifle Heavy Assault Rifle Datajack [Rating: 9] Favorites ----------- Power Ion Engine Engine Ion Engine Propulsion Aluminum Leg Leg Aluminum Leg Utility Small Storage Unit Device Sensor Array Storage Small Storage Unit Weapon Beam Cannon Energy Gun Medium Laser Energy Cannon Beam Cannon Ballistic Gun Assault Rifle Launcher Grenade Launcher Special Melee Weapon Datajack Build | -11 -10 ------- Run | Yrd Mat Slots Evolved . | . . Power . | . . Propulsion . | . . Utility . | . . Weapon . | . . Parts Attached 15 | 6 9 Power 1 | 1 . Engine 1 | 1 . Core . | . . Reactor . | . . Propulsion 4 | 2 2 Treads . | . . Leg 4 | 2 2 Wheel . | . . Hover . | . . Flight . | . . Utility 2 | 1 1 Device 1 | . 1 Storage 1 | 1 . Processor . | . . Hackware . | . . Protection . | . . Artifact . | . . Weapon 8 | 2 6 Energy Gun 3 | 1 2 Energy Cannon 1 | . 1 Ballistic Gun 2 | 1 1 Ballistic Cannon . | . . Launcher 1 | . 1 Special Weapon . | . . Impact Weapon . | . . Slashing Weapon . | . . Piercing Weapon . | . . Special Melee Weapon 1 | . 1 Unidentified Prototypes . | . . Parts Lost 4 | . 4 Power . | . . Propulsion 2 | . 2 Utility . | . . Weapon 2 | . 2 Highest Loss Streak 2 | . 2 To Critical Strikes . | . . Average Slot Usage (%) 83 | . 83 Engine 14 | . 14 Leg 23 | . 23 Device 3 | . 3 Storage 14 | . 14 Energy Gun 9 | . 9 Energy Cannon 7 | . 7 Ballistic Gun 6 | . 6 Special Melee Weapon 2 | . 2 Naked Turns . | . . Heaviest Build 17 | 14 17 Greatest Support 20 | 20 20 Greatest Overweight (x) 1 | . 1 Average Overweight (x) . | . . Largest Inventory Capacity 8 | 8 8 Average Capacity 7 | 7 8 Most Carried 8 | 5 8 Average Carried 2 | . 2 Final Capacity 8 | 8 8 Final Carried 6 | . 6 Class Distribution -------------------- 96% | Mutant 3% | Scavenger-Mutant Dominant Class ---------------- Mutant | -10/Materials Resources | -11 -10 ----------- Run | Yrd Mat Matter Collected 368 | 253 115 Remotely . | . . Salvage Created 694 | . 694 Parts 29 | . 29 Haulers Intercepted . | . . Recyclers Shooed 1 | . 1 Parts Field Recycled . | . . Retrieved Matter . | . . Parts Self-Destructed . | . . Prevented . | . . Kills | -11 -10 ------- Run | Yrd Mat Combat Hostiles Destroyed 12 | . 12 Guns 4 | . 4 Cannons 5 | . 5 AOE 3 | . 3 Classes Destroyed 5 | . 5 Worker 1 | . 1 Recycler 1 | . 1 Watcher 2 | . 2 Swarmer 3 | . 3 Grunt 9 | . 9 Best Kill Streak 3 | . 3 Combat Bots Only 3 | . 3 Max Kills in Single Turn 2 | . 2 Gunslinging . | . . Exploded 1 | . 1 Melee . | . . Uniques/NPCs Destroyed . | . . Combat | -11 -10 -------- Run | Yrd Mat Hostile Shots Fired 88 | . 88 Missed 25 | . 25 Damage Taken 803 | . 803 Core 261 | . 261 Absorbed by Shields . | . . Core Remaining (%) 100 | 100 . Volleys Fired 62 | . 62 Largest 2 | . 2 Hottest 125 | . 125 Shots Fired 102 | . 102 Gun 74 | . 74 Cannon 24 | . 24 Launcher 4 | . 4 Special . | . . Kinetic 38 | . 38 Thermal 46 | . 46 Explosive 4 | . 4 Electromagnetic 14 | . 14 Robot Hit Streak 11 | . 11 Robot Miss Streak 6 | . 6 Penetration Max . | . . Secondary Targets . | . . Shots Hit Robots 59 | . 59 Core Hits 29 | . 29 Critical Kills . | . . Critical Parts Destroyed . | . . Critical Strikes . | . . Melee Attacks . | . . Impact . | . . Slashing . | . . Piercing . | . . Sneak Attacks . | . . Combat Hostiles . | . . Follow-up Attacks . | . . Damage Inflicted 1236 | . 1236 Guns 586 | . 586 Cannons 228 | . 228 Explosions 422 | . 422 Melee . | . . Ramming . | . . Kinetic 307 | . 307 Thermal 463 | . 463 Explosive 303 | . 303 Electromagnetic 163 | . 163 Impact . | . . Slashing . | . . Piercing . | . . Highest Corruption . | . . Average Corruption . | . . Corruption Purged . | . . Corruption Blocked . | . . Overload Shots . | . . Overflow Damage 35 | . 35 Projectiles . | . . Explosions 35 | . 35 Melee . | . . Knockbacks . | . . Impact . | . . Kinetic . | . . Secondary . | . . Self-Inflicted Damage 65 | . 65 Shots 2 | . 2 Rammed . | . . Targets Rammed . | . . Kicked . | . . Crushed . | . . Highest Temperature 410 | . 410 Average Temperature 118 | . 118 Received Heat Transfer 405 | . 405 Effects 2 | . 2 Shutdowns 2 | . 2 Siege Activations . | . . Robots Corrupted . | . . Combat Hostiles . | . . Parts Fried 2 | . 2 Impact Corruptions . | . . Robots Melted . | . . Combat Hostiles . | . . Parts Melted 1 | . 1 Heat Transferred 914 | . 914 Parts Sabotaged . | . . Parts Stolen . | . . Parts Stripped . | . . Power Chain Reactions 1 | . 1 Alert | -11 -10 ------- Run | Yrd Mat Peak Influence 205 | . 205 Initial . | . . Average 70 | . 78 Maximum Alert Level 1 | . 1 Low Security (%) 95 | 100 94 Level 1 4 | . 5 Level 2 . | . . Level 3 . | . . Level 4 . | . . Level 5 . | . . High Security . | . . Max Security . | . . Squads Dispatched 2 | . 2 Investigation 1 | . 1 Extermination . | . . Reinforcement 1 | . 1 Assault . | . . Garrison . | . . Intercept . | . . Searches Triggered . | . . Construction Impeded . | . . Haulers Reinforced . | . . Active Scanning Responses . | . . Cargo Convoy Interrupts . | . . Stealth | -11 -10 --------- Run | Yrd Mat Distress Signals . | . . Communications Jammed . | . . Distress Signals . | . . Times Spotted 22 | . 22 Peak Tracking Total 5 | . 5 Tactical Retreats . | . . Traps | -11 -10 ------- Run | Yrd Mat Traps Triggered . | . . Indirectly . | . . Trap Hack Attempts . | . . Triggered . | . . Disarmed . | . . Reprogrammed . | . . Reused . | . . Traps Extracted . | . . Installed . | . . Triggered . | . . Machines | -11 -10 ---------- Run | Yrd Mat Machines Disabled 3 | . 3 Max in Single Turn 1 | . 1 Machines Repaired . | . . Machines Dismantled . | . . Machines Sabotaged . | . . Overloaded Fab Kills . | . . Hacking | -11 -10 --------- Run | Yrd Mat Machines Accessed 5 | . 5 Terminals 3 | . 3 Fabricators . | . . Repair Stations . | . . Recycling Units 2 | . 2 Scanalyzers . | . . Garrison Access . | . . Total Hacks 14 | . 14 Successful 10 | . 10 Failed 4 | . 4 Catastrophic 1 | . 1 Database Lockouts . | . . Manual . | . . Terminals 11 | . 11 Fabricators . | . . Repair Stations . | . . Recycling Units 3 | . 3 Scanalyzers . | . . Garrison Access . | . . Terminal Hacks 7 | . 7 Branch Access Points 1 | . 1 Unreport Threat 2 | . 2 Surveillance Status 1 | . 1 Investigation Status 1 | . 1 Recall Investigation 1 | . 1 Hauler Manifests 1 | . 1 Fabricator Hacks . | . . Repair Station Hacks . | . . Recycling Unit Hacks 3 | . 3 Report Inventory 2 | . 2 Retrieve Components 1 | . 1 Scanalyzer . | . . Garrison Access Hacks . | . . Unauthorized Hacks . | . . Terminals . | . . Fabricators . | . . Repair Stations . | . . Recycling Units . | . . Scanalyzers . | . . Garrison Access . | . . Data Cores Recovered . | . . Used . | . . Hacking Detections 3 | . 3 Full Trace Events 1 | . 1 Feedback Events . | . . Feedback Blocked . | . . Robot Schematics Acquired . | . . Robots Built . | . . Authchips . | . . Time . | . . Total Robot Build Rating . | . . Part Schematics Acquired . | . . Parts Built . | . . Authchips . | . . Time . | . . Total Part Build Rating . | . . Parts Repaired . | . . Time . | . . Parts Recycled . | . . Recycled Matter . | . . Retrieved Matter . | . . Retrieved Components 7 | . 7 Parts Scanalyzed . | . . Part Schematics Acquired . | . . Parts Damaged . | . . Bothacking | -11 -10 ------------ Run | Yrd Mat Used RIF Installer . | . . Robots Hacked . | . . Non-combat . | . . Combat . | . . Robot Hacks Applied . | . . Relay Couplers Released . | . . Fabnet Peak Effective % . | . . Robots Rewired . | . . Allies Hacked . | . . Hacks Repelled . | . . Allies | -11 -10 -------- Run | Yrd Mat Total Allies . | . . Largest Group . | . . Highest-Rated Group . | . . Highest-Rated Ally . | . . Total Orders . | . . Ally Attacks . | . . Total Damage . | . . Kills . | . . Allies Corrupted . | . . Allies Melted . | . . Intel | -11 -10 ------- Run | Yrd Mat Robot Analysis Total . | . . Derelict Logs Recovered . | . . Drone Launches . | . . Drone Recoveries . | . . Exploration | -11 -10 ------------- Run | Yrd Mat Turns Passed 702 | 71 631 Spaces Moved 374 | 57 317 Core 11 | 11 . Treads . | . . Legs 363 | 46 317 Wheels . | . . Hover . | . . Flight . | . . Fastest Speed 50 | 50 120 Average Speed 132 | 106 137 Slowest Speed 190 | 120 190 Overloaded Moves . | . . Propulsion Burnouts . | . . Robots Hopped . | . . Cave-ins Triggered . | . . Exploration Rate (%) 31 | 4 58 Regions Visited 1 Branch Regions . Pre-discovered Areas . | . . Known Exits Taken . | . . Unknown Exits Taken 1 | 1 . Scrap Searched . | . . Spaces Dug . | . . Terrain Destroyed 25 | . 25 Melee . | . . Projectile . | . . AOE 25 | . 25 Terrain Rammed . | . . Walls Destroyed . | . . Machines Disabled . | . . Actions | -11 -10 --------- Run | Yrd Mat Total 477 | 67 410 Wait 5 | . 5 Move 373 | 56 317 Hop . | . . Pick Up 18 | 5 13 Fast Attach 1 | 1 . Attach 8 | 5 3 Detach . | . . Swap 6 | . 6 Drop 4 | . 4 Fire 62 | . 62 Melee . | . . Ram . | . . Kick . | . . Crush . | . . Escape Stasis . | . . Rewire . | . . Trap . | . . Miscellaneous . | . . Route ------- -11/Scrapyard -10/Materials (discovered 4 exits: [*Mat x3] / *Min) History --------- Turn | Location | Event 4 | -11/Scrapyard | Discovered new exit (range 16) 72 | -11/Scrapyard | Entered Materials 130 | -10/Materials | Discovered new exit (range 16) 272 | -10/Materials | Core integrity fell below 50% 300 | -10/Materials | Build established: Mutant 317 | -10/Materials | Discovered new exit (range 15) 427 | -10/Materials | Identified exit to Mines 688 | -10/Materials | Discovered new exit (range 10) 690 | -10/Materials | Core integrity fell below 20% 703 | -10/Materials | Destroyed by G-34 Mercenary with Small Laser Last Messages --------------- 00584_ Dropped Assault Rifle. 00609_ K-01 Serf cleans the Processing Tank. 00611_ Acquired Grenade Launcher. 00620_ A-02 Transporter destroyed. 00624_ Acquired 40 matter. 00625_ W-16 Scout destroyed. 00625_ K-01 Serf collects debris. 00629_ Destroyed Mining Laser. 00633_ T-07 Excavator destroyed. 00635_ R-06 Scavenger destroyed. 00681_ Critical hit (Burn: +37). 00683_ ALERT: Hostiles spotted, dispatching reinforcements to Terminal M005. 00685_ Matter Pump disabled. 00688_ EXIT=FOUND 00689_ G-47 Trooper destroyed. 00693_ Aluminum Leg destroyed. 00695_ G-34 Mercenary destroyed. 00699_ Grenade Launcher destroyed. 00702_ The unstable cave ceiling collapses. Map ----- +----------------------------------------------------+ | | | | | | | | | | | | | | | | | ?????????????????????????????????????????????????? | | ?????????????????????????????????????????????????? | | ?????????????????????????? ?????????????????????? | | ?????????????????????????? ?????????????????????? | | ?????###################?? ?????????????????????? | | ?????? ??! ?????????????????????? | | ?????????# #? ## ###???????????????????? | | ?????????# #? #???????????????????? | | ?????????# #?? #??????#????????????? | | ?#####???# #?? %< ###### ##???????????? | | ##"""##??# #?? ??????????? | | #"|||"##?# ####+#### g ??????????? | | "" ""#?###### ## ? # ^ ??????????? | | #??????# ## """ # ?????????? | | > #??????# ## "T" ## ?????????? | | #??????# ## ?## ???????????? | | #??????# ## # %g " ""????????????? | | # #???#####+## [ # @ " ""????????????? | | ## ##???# %!?! # # " " ""????????????? | | ?# ###### !=!* # """ + ??? ????? | | ?# # # """ # ?? ????? | | ?# # ! # """ ## ########+???# ????? | | ## #* # ## #???????????# ????? | | # ! %!#! ## #???????????# ???? | | ##+############ #???????????# ???? | | #???????????# ???? | | [[ ######???########???????????# ???? | | [ """"" #???????????????????????????# ???? | | """"" #???????????????????????????# #??? | | ## """" #???????????????????????????# #??? | | ?+ #??????????????????????????## ###? | | ?# #??????????########????????# ## | | ?# """"" ????? #????????# | | ?# """"" ??????? ########## T | | ?# """"" ???????? ## # | | ?# #??????????# ##[[ """ # ! ## | | ?# #??????????# ##[| "Y" ## ##? | | ?# = ! """"" #??????????# ## ## #?? | | ?# """"" #??????????# #####+##### #?? | | ## """"" #??????????# #???# #?? | | #??????????# ##### #???# #?? | | < #??????????# #???# ##### #?? | +----------------------------------------------------+ Best States ------------- Heat Dissipation 25 Energy Generation 10 Energy Capacity 250 Matter Stores 300 Matter Capacity 300 Sight Range 16 Robot Scan Range 14 Terrain Scan Density 10 Evasion (%) 55 Item Schematics ----------------- None Robot Schematics ------------------ None Fabricated ------------ Nothing Alien Tech Used ----------------- None Achievements -------------- One Hack Too Far Shopping List Challenges ------------ None Game ------ Seed CannonIntegratedWings Manual? 0 Play Time 00:07:54 Cumulative 1.0 hours Start 2024.04.28 @ 22:07:05 End 2024.04.28 @ 22:14:28 Sessions 1 Manual Loads 0 Difficulty Rogue Special Mode None Game No. 4 Rogue 4 Adventurer 0 Explorer 0 Win Type - Total 0 Types 0/0/0/0/0/0/0/0/0 Lore% 0 Gallery% 6 Achievement% 7 Wizard Run 0 Options --------- Layout 1 ASCII 0 Keyboard 0 Movement Mouse Keybinds 0 Fullscreen 2 Font 32/SmallcapsGlow Map View 50x35 Zoom Use 0% Tactical HUD 1 Map Filters NONE Filters NONE Steam 1 RUN: a2a98bcb-b1ee-4b8b-a9fc-ce478b730d40